fUST/lending_fUST_20251126
["ID","MTS","AMOUNT","RATE_DAILY","PERIOD"]
[394935871,1764163842376,-1209.60112824,0.00030137,5]
[394935872,1764163842386,-1236.586871,0.00030137,120]
[394935873,1764163842396,-650.0,0.00030137,5]
[394935874,1764163842406,-650.0,0.00030137,5]
[394935875,1764163842415,-500.0,0.00030137,2]
[394935876,1764163842427,-500.0,0.00030137,2]
[394935877,1764163842436,-500.0,0.00030137,2]
[394935879,1764163842446,-500.0,0.00030137,2]
[394935881,1764163842456,-500.0,0.00030137,2]
[394935882,1764163842465,-500.0,0.00030137,2]
[394935883,1764163842475,-500.0,0.00030137,2]
[394935884,1764163842484,-500.0,0.00030137,2]
[394935885,1764163842495,-500.0,0.00030137,2]
[394935886,1764163842506,-500.0,0.00030137,2]
[394935887,1764163842515,-500.0,0.00030137,2]
[394935888,1764163842526,-500.0,0.00030137,2]
[394935889,1764163842535,-500.0,0.00030137,2]
[394935890,1764163842544,-500.0,0.00030137,2]
[394935891,1764163842553,-500.0,0.00030137,2]
[394935892,1764163842562,-500.0,0.00030137,2]
[394935893,1764163842571,-500.0,0.00030137,2]
[394935894,1764163842581,-500.0,0.00030137,2]
[394935895,1764163842591,-500.0,0.00030137,2]
[394935896,1764163842600,-500.0,0.00030137,2]
[394935897,1764163842609,-500.0,0.00030137,2]
[394935898,1764163842619,-500.0,0.00030137,2]
[394935899,1764163842628,-500.0,0.00030137,2]
[394935900,1764163842637,-500.0,0.00030137,2]
[394935901,1764163842646,-500.0,0.00030137,2]
[394935902,1764163842655,-500.0,0.00030137,2]
[394935903,1764163842669,-500.0,0.00030137,2]
[394935904,1764163842678,-500.0,0.00030137,2]
[394935905,1764163842687,-500.0,0.00030137,2]
[394935906,1764163842697,-500.0,0.00030137,2]
[394935907,1764163842706,-185.68633807,0.00030137,2]
[394935908,1764163842715,-500.0,0.00030137,2]
[394935909,1764163842724,-500.0,0.00030137,2]
[394935910,1764163842733,-500.0,0.00030137,2]
[394935911,1764163842742,-500.0,0.00030137,2]
[394935912,1764163842751,-500.0,0.00030137,2]
[394935913,1764163842760,-200.0,0.00030137,2]
[394935914,1764163842769,-500.0,0.00030137,2]
[394935915,1764163842778,-500.0,0.00030137,2]
[394935916,1764163842787,-500.0,0.00030137,2]
[394935917,1764163842796,-500.0,0.00030137,2]
[394935918,1764163842805,-500.0,0.00030137,2]
[394935919,1764163842815,-500.0,0.00030137,2]
[394935920,1764163842824,-500.0,0.00030137,2]
[394935921,1764163842833,-500.0,0.00030137,2]
[394935922,1764163842842,-500.0,0.00030137,2]
[394935923,1764163842851,-674.70969156,0.0003022,2]
[394935924,1764163842860,-500.0,0.00030274,2]
[394935925,1764163842871,-500.0,0.00030411,2]
[394935926,1764163842880,-1000.0,0.00030521,5]
[394935927,1764163842889,-5000.0,0.0003054,2]
[394935928,1764163842898,-500.0,0.00030548,2]
[394935929,1764163842907,-1735.01,0.000306,7]
[394935930,1764163842917,-704.07,0.000306,14]
[394935931,1764163842926,-500.0,0.00030685,2]
[394935932,1764163842935,-155.0,0.00030685,41]
[394935933,1764163842944,-750.0,0.00030685,5]
[394935934,1764163842954,-750.0,0.00030685,5]
[394935935,1764163842963,-1000.0,0.00030685,120]
[394935936,1764163842973,-864.0,0.0003073,30]
[394935937,1764163842983,-600.88318,0.000308,120]
[394935938,1764163842993,-500.0,0.00030822,2]
[394935939,1764163843003,-500.0,0.00030959,2]
[394935940,1764163843013,-305.42032834,0.0003099,2]
[394935941,1764163843022,-7476.71,0.00031,2]
[394935942,1764163843031,-223.36159507,0.00031,120]
[394935943,1764163843041,-234.00833538,0.00031,120]
[394935944,1764163843050,-240.03029486,0.00031,120]
[394935945,1764163843059,-167.67028014,0.00031,120]
[394935946,1764163843069,-177.02530812,0.00031,120]
[394935947,1764163843078,-332.19736937,0.00031,120]
[394935948,1764163843087,-190.15502237,0.00031,120]
[394935949,1764163843097,-181.97410049,0.00031,120]
[394935950,1764163843106,-391.62031859,0.00031,120]
[394935951,1764163843115,-1136.03099395,0.00031,120]
[394935952,1764163843125,-331.73185394,0.00031,120]
[394935953,1764163843135,-1000.0,0.00031,120]
[394935954,1764163843143,-104446.144791,0.00031,30]
[394935955,1764163843153,-1327.59928192,0.00031068,5]
[394935956,1764163843163,-500.0,0.00031096,2]
[394935957,1764163843172,-500.0,0.00031233,2]
[394935958,1764163843181,-150.57321245,0.00031233,5]
[394935959,1764163843190,-850.0,0.00031233,5]
[394935960,1764163843199,-1000.0,0.00031233,120]
[394935961,1764163843208,-704.07,0.000313,14]
[394935962,1764163843217,-528.14410524,0.0003137,2]
[394935963,1764163843227,-447.0,0.00031396,2]
[394935964,1764163843235,-300.0,0.000314,120]
[394935965,1764163843244,-5000.0,0.00031407,2]
[394935966,1764163843253,-3000.0,0.00031476,7]
[394935967,1764163843262,-950.0,0.00031781,5]
[394935968,1764163843271,-1000.0,0.00031781,120]
[394935969,1764163843280,-1000.0,0.00031781,120]
[394935970,1764163843289,-234.00833538,0.000319,120]
[394935971,1764163843299,-167.67028014,0.000319,120]
[394935972,1764163843308,-177.02530812,0.000319,120]
[394935973,1764163843317,-332.19736937,0.000319,120]
[394935974,1764163843329,-190.15502237,0.000319,120]
[394935975,1764163843338,-181.97410049,0.000319,120]
[394935976,1764163843347,-391.62031859,0.000319,120]
[394935977,1764163843356,-1136.03099395,0.000319,120]
[394935978,1764163843365,-331.73185394,0.000319,120]
[394935979,1764163843376,-182.73089303,0.00032,30]
[394935980,1764163843385,-500.0,0.00032,120]
[394935981,1764163843394,-258.0,0.00032,14]
[394935982,1764163843403,-1735.01,0.000321,7]
[394935983,1764163843413,-704.07,0.000321,14]
[394935984,1764163843422,-500.0,0.0003216,2]
[394935985,1764163843432,-258.0,0.00032243,14]
[394935986,1764163843441,-284.83,0.0003225,30]
[394935987,1764163843450,-5000.0,0.00032273,2]
[394935988,1764163843459,-163.0,0.00032329,52]
[394935989,1764163843469,-1050.0,0.00032329,5]
[394935990,1764163843479,-1000.0,0.00032329,120]
[394935991,1764163843488,-1000.0,0.00032329,120]
[394935992,1764163843497,-600.88318,0.000324,120]
[394935993,1764163843506,-1735.02,0.000324,7]
[394935994,1764163843515,-7476.71,0.000325,2]
[394935995,1764163843526,-10254.0,0.000325,120]
[394935996,1764163843535,-173.469268,0.0003267,120]
[394935997,1764163843544,-513.24,0.000327,8]
[394935998,1764163843554,-3654.48037842,0.00032777,2]
[394935999,1764163843573,-276.93383609,0.00032777,2]
[394936001,1764163844802,-353.4974844,0.00013291,2]
[394936002,1764163844812,-266.98377808,0.00020625,2]
[394936003,1764163844822,-343.15392306,0.00032777,2]
[394936021,1764164042442,300.0,0.000215,120]
[394936022,1764164050616,5000.0,0.000215,120]
[394936023,1764164073181,5000.0,0.00014,10]
[394936024,1764164096804,5000.0,0.00014,10]
[394936071,1764165032011,-150.0,9.295e-05,2]
[394936073,1764165032024,-227.0,9.295e-05,2]
[394936075,1764165032033,-150.0,9.436e-05,2]
[394936077,1764165032043,-170.2338887,9.596e-05,2]
[394936079,1764165032052,-300.0,9.717e-05,2]
[394936081,1764165032061,-50000.0,9.718e-05,2]
[394936082,1764165032070,-158.64,9.721e-05,2]
[394936084,1764165032080,-500.0,0.00010959,2]
[394936086,1764165032089,-500.0,0.00010959,2]
[394936088,1764165032099,-541.68458297,0.00010959,2]
[394936090,1764165032108,-177.0,0.00011436,2]
[394936091,1764165032117,-204.0,0.00013436,2]
[394936092,1764165032126,-1500.0,0.00013699,2]
[394936094,1764165032135,-353.4974844,0.00013702,2]
[394936096,1764165032145,-150.182,0.00014879,2]
[394936098,1764165032154,-150.105,0.00014879,2]
[394936100,1764165032163,-231.0,0.00015436,2]
[394936102,1764165032172,-578.74655876,0.00016438,2]
[394936104,1764165032181,-258.0,0.00017436,2]
[394936106,1764165032190,-285.0,0.00019436,2]
[394936107,1764165032199,-500.0,0.0002,2]
[394936110,1764165032208,-500.0,0.0002,2]
[394936111,1764165032218,-1500.0,0.00020187,2]
[394936112,1764165032227,-1000.0,0.00020695,3]
[394936113,1764165032236,-1000.0,0.00020894,3]
[394936114,1764165032246,-188.15724116,0.00021436,2]
[394936115,1764165032256,-999.0287,0.00022989,7]
[394936116,1764165032265,-182.0,0.00023041,9]
[394936117,1764165032275,-179.76630381,0.00023612,2]
[394936118,1764165032283,-1000.0,0.00024109,3]
[394936119,1764165032293,-1000.0,0.00025088,3]
[394936120,1764165032302,-1000.0,0.00025396,3]
[394936121,1764165032311,-380.0,0.00026006,2]
[394936122,1764165032320,-161.062,0.00026207,12]
[394936123,1764165032329,-1500.0,0.00026676,2]
[394936124,1764165032339,-3684.09,0.0002683,10]
[394936125,1764165032349,-3070.07,0.0002683,10]
[394936126,1764165032360,-38000.0,0.0002684,7]
[394936127,1764165032371,-38000.0,0.00026849,7]
[394936128,1764165032380,-500.0,0.00026873,2]
[394936129,1764165032390,-500.0,0.00026873,2]
[394936130,1764165032399,-520.5,0.000269,7]
[394936131,1764165032408,-246.32735487,0.00027397,2]
[394936132,1764165032417,-1000.0,0.00027421,5]
[394936133,1764165032426,-1000.0,0.00027421,5]
[394936134,1764165032435,-169.0,0.00027425,14]
[394936135,1764165032444,-1000.0,0.00027699,3]
[394936136,1764165032453,-1500.0,0.00027968,5]
[394936137,1764165032462,-1500.0,0.00027968,5]
[394936138,1764165032470,-353.4974844,0.00028,10]
[394936139,1764165032479,-353.4974844,0.00028,10]
[394936140,1764165032488,-2000.0,0.00028516,5]
[394936141,1764165032497,-2000.0,0.00028516,5]
[394936142,1764165032506,-1000.0,0.0002904,3]
[394936143,1764165032515,-2500.0,0.00029064,5]
[394936144,1764165032524,-1358.87714254,0.00029064,5]
[394936145,1764165032533,-3000.0,0.00029612,5]
[394936146,1764165032542,-1000.0,0.00029999,3]
[394936147,1764165032551,-3500.0,0.0003016,5]
[394936148,1764165032560,-1000.0,0.00030684,3]
[394936149,1764165032568,-4000.0,0.00030708,5]
[394936150,1764165032577,-243.28704085,0.00031,120]
[394936151,1764165032586,-1821.74117309,0.00031,120]
[394936152,1764165032595,-168.43571232,0.00031,120]
[394936153,1764165032604,-192.8840785,0.00031,120]
[394936154,1764165032615,-202.16462273,0.00031,120]
[394936155,1764165032626,-234.97219115,0.00031,120]
[394936156,1764165032635,-1400.0,0.00031133,7]
[394936157,1764165032645,-520.5,0.000312,7]
[394936158,1764165032654,-4500.0,0.00031256,5]
[394936159,1764165032662,-171.08,0.000315,7]
[394936160,1764165032672,-171.08,0.0003169,7]
[394936161,1764165032681,-12813.8667044,0.0003176,2]
[394936162,1764165032691,-12813.8667044,0.0003177,2]
[394936163,1764165032700,-51255.4668178,0.0003178,2]
[394936164,1764165032710,-128138.667044,0.0003179,2]
[394936165,1764165032719,-500.0,0.0003179,15]
[394936166,1764165032728,-275359.23062607,0.000318,2]
[394936167,1764165032774,-222.50514046,9.717e-05,2]
[394936168,1764165032783,-500.0,9.717e-05,2]
[394936169,1764165032792,-228.53495058,9.717e-05,2]
[394936170,1764165032801,-500.0,0.00030137,2]
[394936171,1764165032815,-500.0,0.00030137,2]
[394936172,1764165032824,-53539.8870214,0.000318,2]
[394936173,1764165032835,-1156.8,0.000318,2]
[394936174,1764165032846,-23732.73594279,0.000318,2]
[394936179,1764165038043,-301.25937483,9.717e-05,2]
[394936180,1764165038054,-198.74062517,9.717e-05,2]
[394936181,1764165038063,-500.0,9.717e-05,2]
[394936182,1764165038073,-500.0,9.717e-05,2]
[394936183,1764165038082,-500.0,9.717e-05,2]
[394936184,1764165038091,-500.0,9.717e-05,2]
[394936185,1764165038100,-500.0,9.717e-05,2]
[394936186,1764165038110,-370.13506429,9.717e-05,2]
[394936239,1764165040381,-129.86493571,9.717e-05,2]
[394936241,1764165040390,-500.0,9.717e-05,2]
[394936243,1764165040400,-500.0,9.717e-05,2]
[394936245,1764165040409,-500.0,9.717e-05,2]
[394936247,1764165040418,-500.0,9.717e-05,2]
[394936249,1764165040428,-500.0,9.717e-05,2]
[394936251,1764165040437,-500.0,9.717e-05,2]
[394936253,1764165040446,-500.0,9.717e-05,2]
[394936255,1764165040456,-500.0,9.717e-05,2]
[394936257,1764165040465,-500.0,9.717e-05,2]
[394936259,1764165040474,-500.0,9.717e-05,2]
[394936261,1764165040483,-481.2954308,9.717e-05,2]
[394936264,1764165040492,-500.0,9.717e-05,2]
[394936266,1764165040501,-500.0,9.717e-05,2]
[394936267,1764165040510,-166.8648613,0.000129,2]
[394936269,1764165040519,-150.261,0.00014879,2]
[394936271,1764165040528,-150.0,0.00014879,2]
[394936273,1764165040537,-166.8648613,0.00015658,2]
[394936275,1764165040546,-150.0,0.00017879,2]
[394936277,1764165040555,-538.56863381,0.00030137,2]
[394936279,1764165040565,-500.0,0.00030137,2]
[394936281,1764165040575,-500.0,0.00030137,2]
[394936283,1764165040584,-2558.4,0.0003179,10]
[394936285,1764165040594,-92348.20452717,0.000318,2]
[394936287,1764165040603,-5000.0,0.00031804,5]
[394936289,1764165040612,-900.0,0.00031873,5]
[394936291,1764165040621,-243.28704085,0.000319,120]
[394936293,1764165040630,-1821.74117309,0.000319,120]
[394936295,1764165040639,-168.43571232,0.000319,120]
[394936297,1764165040649,-192.8840785,0.000319,120]
[394936299,1764165040658,-202.16462273,0.000319,120]
[394936301,1764165040666,-234.97219115,0.000319,120]
[394936303,1764165040676,-1400.0,0.00031955,7]
[394936305,1764165040685,-12813.8667044,0.0003197,2]
[394936307,1764165040693,-25627.7334089,0.0003198,2]
[394936309,1764165040703,-100000.0,0.0003199,2]
[394936311,1764165040712,-500.0,0.00032064,15]
[394936313,1764165040721,-1000.0,0.00032242,3]
[394936315,1764165040730,-1000.0,0.00032249,3]
[394936317,1764165040739,-1000.0,0.00032328,3]
[394936320,1764165040751,-1000.0,0.00032328,3]
[394936321,1764165040760,-513.17,0.00032338,15]
[394936323,1764165040769,-5500.0,0.00032352,5]
[394936324,1764165040779,-1000.0,0.00032399,3]
[394936326,1764165040788,-1281.71020926,0.00032421,5]
[394936328,1764165040797,-171.08,0.00032577,8]
[394936330,1764165040809,-1000.0,0.00032669,3]
[394936332,1764165040821,-1000.0,0.00032699,3]
[394936334,1764165040829,-1165.0,0.000327,8]
[394936335,1764165040840,-209.12468058,0.00032711,2]
[394936338,1764165040851,-1000.0,0.00032776,2]
[394936339,1764165040860,-1400.0,0.00032777,7]
[394936342,1764165040874,-12813.8667044,0.00032837,2]
[394936344,1764165040883,-151.0,0.00032847,31]
[394936346,1764165040892,-748.911865,0.00032847,31]
[394936348,1764165040901,-748.911865,0.00032847,31]
[394936350,1764165040910,-748.911865,0.00032847,31]
[394936352,1764165040919,-748.911865,0.00032847,31]
[394936354,1764165040928,-1317.3040007,0.00032849,2]
[394936356,1764165040938,-999.0,0.00032876,120]
[394936358,1764165040947,-10000.0,0.00032877,2]
[394936360,1764165040956,-10000.0,0.00032877,2]
[394936362,1764165040965,-10000.0,0.00032877,2]
[394936363,1764165040975,-10000.0,0.00032877,2]
[394936365,1764165040984,-10000.0,0.00032877,2]
[394936367,1764165040993,-10000.0,0.00032877,2]
[394936369,1764165041002,-10000.0,0.00032877,2]
[394936370,1764165041011,-10000.0,0.00032877,2]
[394936372,1764165041020,-10000.0,0.00032877,2]
[394936374,1764165041030,-10000.0,0.00032877,2]
[394936376,1764165041040,-10000.0,0.00032877,2]
[394936377,1764165041049,-10000.0,0.00032877,2]
[394936379,1764165041058,-10000.0,0.00032877,2]
[394936380,1764165041067,-10000.0,0.00032877,2]
[394936381,1764165041077,-92883.40824572,0.00032877,120]
[394936401,1764165044509,-166.8648613,0.00021699,2]
[394936402,1764165044519,-813.42119433,0.00032877,120]
[394936403,1764165044531,-648.91394437,0.00032877,120]
[394936404,1764165045227,5000.0,0.000215,120]
[394936413,1764165068316,5000.0,0.000215,120]
[394936414,1764165090782,5000.0,0.000215,120]
[394936415,1764165113136,5000.0,0.00014,10]
[394936417,1764165135475,5000.0,0.00014,10]
[394936625,1764165214731,150.0,0.0002,120]
[394937018,1764165405385,197.0,0.000215,120]
[394937022,1764165546651,5000.0,0.00014,10]
[394937049,1764165569326,489.56165459,0.00014,10]
[394937104,1764166232227,-229.0,9.229e-05,2]
[394937105,1764166232237,-226.0,9.229e-05,2]
[394937107,1764166232246,-161.11176896,9.441e-05,2]
[394937109,1764166232255,-500.0,9.623e-05,2]
[394937126,1764166232413,-277.03012682,9.623e-05,2]
[394937128,1764166232427,-222.96987318,9.623e-05,2]
[394937130,1764166232436,-500.0,9.623e-05,2]
[394937132,1764166232446,-386.8380506,9.623e-05,2]
[394937134,1764166232457,-113.1619494,9.623e-05,2]
[394937137,1764166232466,-500.0,9.623e-05,2]
[394937138,1764166232476,-500.0,9.623e-05,2]
[394937140,1764166232484,-65.81684509,9.623e-05,2]
[394937149,1764166232554,-434.18315491,9.623e-05,2]
[394937151,1764166232564,-500.0,9.623e-05,2]
[394937153,1764166232573,-500.0,9.623e-05,2]
[394937155,1764166232583,-500.0,9.623e-05,2]
[394937157,1764166232592,-500.0,9.623e-05,2]
[394937159,1764166232602,-408.12814699,9.631e-05,2]
[394937161,1764166232611,-500.0,9.631e-05,2]
[394937163,1764166232620,-500.0,9.631e-05,2]
[394937165,1764166232636,-500.0,9.631e-05,2]
[394937167,1764166232646,-500.0,9.631e-05,2]
[394937169,1764166232655,-500.0,9.631e-05,2]
[394937171,1764166232664,-500.0,9.631e-05,2]
[394937173,1764166232674,-440.16704329,9.631e-05,2]
[394937175,1764166232684,-500.0,9.631e-05,2]
[394937177,1764166232693,-300.0,9.632e-05,2]
[394937179,1764166232703,-35473.38592803,9.642e-05,2]
[394937405,1764166240638,-837.20734335,9.535e-05,2]
[394937557,1764166245379,-1096.40019257,9.535e-05,2]
[394937558,1764166245390,-1727.33264145,9.535e-05,2]
[394937575,1764166246418,-277.7420685,9.535e-05,2]
[394937582,1764166246480,-418.93857618,9.535e-05,2]
[394937591,1764166246788,-8476.19236559,9.535e-05,2]
[394937646,1764167432570,-277.38014483,9.046e-05,2]
[394937708,1764167438437,-250.61985517,9.046e-05,2]
[394937709,1764167438447,-225.0,9.046e-05,2]
[394937710,1764167438457,-150.0,9.23e-05,2]
[394937711,1764167438466,-500.0,9.332e-05,2]
[394937712,1764167438477,-500.0,9.332e-05,2]
[394937713,1764167438488,-782.72059582,9.332e-05,2]
[394937714,1764167438498,-500.0,9.332e-05,2]
[394937715,1764167438507,-353.24416814,9.332e-05,2]
[394937716,1764167438517,-782.72059582,9.332e-05,2]
[394937717,1764167438535,-605.70584618,9.332e-05,2]
[394937718,1764167438545,-782.72059582,9.332e-05,2]
[394937719,1764167438555,-500.0,9.332e-05,2]
[394937720,1764167438565,-500.0,9.332e-05,2]
[394937721,1764167438575,-782.72059582,9.332e-05,2]
[394937722,1764167438585,-500.0,9.332e-05,2]
[394937723,1764167438594,-782.72059582,9.332e-05,2]
[394937724,1764167438604,-782.72059582,9.332e-05,2]
[394937725,1764167438613,-500.0,9.332e-05,2]
[394937726,1764167438622,-782.72059582,9.332e-05,2]
[394937727,1764167438633,-500.0,9.332e-05,2]
[394937728,1764167438643,-782.72059582,9.332e-05,2]
[394937729,1764167438652,-500.0,9.332e-05,2]
[394937730,1764167438663,-782.72059582,9.332e-05,2]
[394937731,1764167438675,-782.72059582,9.332e-05,2]
[394937732,1764167438684,-782.72059582,9.332e-05,2]
[394937733,1764167438693,-782.72059582,9.332e-05,2]
[394937734,1764167438703,-782.72059582,9.332e-05,2]
[394937735,1764167438712,-782.72059582,9.332e-05,2]
[394937736,1764167438722,-782.72059582,9.332e-05,2]
[394937737,1764167438732,-782.72059582,9.332e-05,2]
[394937738,1764167438744,-782.72059582,9.332e-05,2]
[394937739,1764167438754,-782.72059582,9.332e-05,2]
[394937740,1764167438763,-782.72059582,9.332e-05,2]
[394937741,1764167438773,-782.72059582,9.332e-05,2]
[394937742,1764167438782,-782.72059582,9.332e-05,2]
[394937743,1764167438791,-782.72059582,9.332e-05,2]
[394937744,1764167438801,-782.72059582,9.332e-05,2]
[394937745,1764167438811,-782.72059582,9.332e-05,2]
[394937746,1764167438820,-782.72059582,9.332e-05,2]
[394937747,1764167438831,-782.72059582,9.332e-05,2]
[394937748,1764167438841,-782.72059582,9.332e-05,2]
[394937749,1764167438852,-782.72059582,9.332e-05,2]
[394937750,1764167438862,-782.72059582,9.332e-05,2]
[394937751,1764167438872,-782.72059582,9.332e-05,2]
[394937752,1764167438883,-119.73886774,9.332e-05,2]
[394937753,1764167438897,-662.98172808,9.332e-05,2]
[394937754,1764167438907,-782.72059582,9.332e-05,2]
[394937755,1764167438917,-782.72059582,9.332e-05,2]
[394937756,1764167438927,-782.72059582,9.332e-05,2]
[394937757,1764167438938,-782.72059582,9.332e-05,2]
[394937758,1764167438947,-782.72059582,9.332e-05,2]
[394937759,1764167438957,-782.72059582,9.332e-05,2]
[394937760,1764167438967,-782.72059582,9.332e-05,2]
[394937761,1764167438977,-782.72059582,9.332e-05,2]
[394937762,1764167438986,-782.72059582,9.332e-05,2]
[394937763,1764167438996,-782.72059582,9.332e-05,2]
[394937764,1764167439006,-782.72059582,9.332e-05,2]
[394937765,1764167439016,-50000.0,9.333e-05,2]
[394937766,1764167439026,-500.0,9.333e-05,2]
[394937767,1764167439036,-500.0,9.333e-05,2]
[394937768,1764167439046,-520.3051218,9.333e-05,2]
[394937769,1764167439056,-500.0,9.333e-05,2]
[394937770,1764167439066,-500.0,9.333e-05,2]
[394937771,1764167439076,-500.0,9.333e-05,2]
[394937772,1764167439087,-502.55090128,9.333e-05,2]
[394937773,1764167439097,-500.0,9.333e-05,2]
[394937774,1764167439107,-500.0,9.333e-05,2]
[394937775,1764167439116,-500.0,9.333e-05,2]
[394937776,1764167439126,-500.0,9.333e-05,2]
[394937777,1764167439136,-500.0,9.333e-05,2]
[394937778,1764167439146,-500.0,9.333e-05,2]
[394937779,1764167439157,-500.0,9.333e-05,2]
[394937780,1764167439167,-500.0,9.333e-05,2]
[394937781,1764167439179,-300.0,9.351e-05,2]
[394937782,1764167439190,-300.0,9.351e-05,2]
[394937783,1764167439201,-1200.0,9.351e-05,2]
[394937784,1764167439211,-182937.42597072,9.352e-05,2]
[394937800,1764167440759,-8621.03426809,9.352e-05,2]
[394937803,1764167440771,-300000.38184464,9.352e-05,2]
[394937857,1764167446778,-14118.59575516,9.258e-05,2]
[394937884,1764168631644,-216.2202196,7.87e-05,2]
[394937886,1764168631654,-216.0,7.87e-05,2]
[394937888,1764168631664,-216.2202196,7.95e-05,2]
[394937890,1764168631674,-168.40784163,8.138e-05,2]
[394937892,1764168631684,-310.27,8.407e-05,2]
[394937894,1764168631693,-500.0,9.113e-05,2]
[394937896,1764168631702,-500.0,9.113e-05,2]
[394937898,1764168631712,-222.96987318,9.113e-05,2]
[394937900,1764168631721,-526.6451983,9.113e-05,2]
[394937902,1764168631730,-308.77388994,9.113e-05,2]
[394937904,1764168631740,-219.0,9.13e-05,2]
[394937907,1764168631749,-300.0,9.13e-05,2]
[394937909,1764168631760,-1200.0,9.13e-05,2]
[394937911,1764168631770,-300.0,9.13e-05,2]
[394937912,1764168631780,-500.0,9.131e-05,2]
[394937914,1764168631789,-178.41176069,9.131e-05,2]
[394937917,1764168631799,-500.0,9.131e-05,2]
[394937918,1764168631808,-515.7247245,9.131e-05,2]
[394937920,1764168631816,-1192.31170517,9.131e-05,2]
[394937923,1764168631826,-500.0,9.131e-05,2]
[394937925,1764168631836,-500.0,9.131e-05,2]
[394937927,1764168631849,-1192.31170517,9.131e-05,2]
[394937929,1764168631859,-235.32441681,9.131e-05,2]
[394937931,1764168631868,-1192.31170517,9.131e-05,2]
[394937933,1764168631878,-500.0,9.131e-05,2]
[394937935,1764168631887,-1192.31170517,9.131e-05,2]
[394937937,1764168631896,-500.0,9.131e-05,2]
[394937939,1764168631905,-1192.31170517,9.131e-05,2]
[394937941,1764168631915,-500.0,9.131e-05,2]
[394937943,1764168631924,-500.0,9.131e-05,2]
[394937945,1764168631933,-1192.31170517,9.131e-05,2]
[394937947,1764168631942,-1192.31170517,9.131e-05,2]
[394937949,1764168631951,-1192.31170517,9.131e-05,2]
[394937951,1764168631960,-1192.31170517,9.131e-05,2]
[394937953,1764168631970,-1192.31170517,9.131e-05,2]
[394937955,1764168631979,-1192.31170517,9.131e-05,2]
[394937957,1764168631988,-1192.31170517,9.131e-05,2]
[394937959,1764168631997,-1192.31170517,9.131e-05,2]
[394937961,1764168632007,-1192.31170517,9.131e-05,2]
[394937963,1764168632016,-1192.31170517,9.131e-05,2]
[394937965,1764168632025,-1192.31170517,9.131e-05,2]
[394937967,1764168632034,-1192.31170517,9.131e-05,2]
[394937969,1764168632044,-1192.31170517,9.131e-05,2]
[394937971,1764168632054,-1192.31170517,9.131e-05,2]
[394937973,1764168632063,-1192.31170517,9.131e-05,2]
[394937975,1764168632073,-1192.31170517,9.131e-05,2]
[394937977,1764168632083,-1192.31170517,9.131e-05,2]
[394937979,1764168632093,-1192.31170517,9.131e-05,2]
[394937981,1764168632102,-1192.31170517,9.131e-05,2]
[394937983,1764168632112,-1192.31170517,9.131e-05,2]
[394937985,1764168632121,-1192.31170517,9.131e-05,2]
[394937987,1764168632131,-1192.31170517,9.131e-05,2]
[394937989,1764168632140,-1192.31170517,9.131e-05,2]
[394937991,1764168632150,-1192.31170517,9.131e-05,2]
[394937993,1764168632160,-1192.31170517,9.131e-05,2]
[394937995,1764168632169,-1192.31170517,9.131e-05,2]
[394937997,1764168632179,-1192.31170517,9.131e-05,2]
[394937999,1764168632189,-1192.31170517,9.131e-05,2]
[394938001,1764168632200,-1192.31170517,9.131e-05,2]
[394938003,1764168632209,-1192.31170517,9.131e-05,2]
[394938005,1764168632218,-1192.31170517,9.131e-05,2]
[394938007,1764168632227,-1192.31170517,9.131e-05,2]
[394938009,1764168632238,-1192.31170517,9.131e-05,2]
[394938011,1764168632247,-1192.31170517,9.131e-05,2]
[394938013,1764168632256,-1192.31170517,9.131e-05,2]
[394938015,1764168632266,-1192.31170517,9.131e-05,2]
[394938017,1764168632280,-1192.31170517,9.131e-05,2]
[394938019,1764168632289,-1192.31170517,9.131e-05,2]
[394938021,1764168632299,-1192.31170517,9.131e-05,2]
[394938024,1764168632308,-1192.31170517,9.131e-05,2]